Cogmind - Beta 15 @@@ ROGUE MODE // 2025.09.12 @ 21:17:43 Player: shapeshifter Result: Destroyed by H-77 Assassin with Coil Gun Performance ------------- Evolutions (7) 3500 Regions Visited (16) 3200 Robots Destroyed (79) 395 Value Destroyed (3145) 3145 Prototype IDs (63) 1260 Alien Tech Used (6) 1200 Bonus (21483) 21483 TOTAL SCORE: 34183 Bonus ------- High Alert Combat Kills 73 Registered with UFD 300 Met Optimus in HQ 500 Met Warlord at Base 500 MAIN.C Attacked Warlord 500 Warlord Defense Kills 648 Used Core Reset Matrix 3000 Destroyed Superfortress 15000 Met Optimus at Protoforge 1000 Friendly Fire -38 Cogmind --------- Core Integrity 0/1300 Matter 1050/1050 Energy 100/100 System Corruption 9% Temperature Cool (0) Movement Core (50) Location -3/Protoforge Parts ------- > --- POWER (2) -------- (None) > --- PROPULSION (8) --- (None) > --- UTILITY (8) ------ Experimental Coolant Injector Concept NT7 Matterbank Experimental Cloaking Device > --- WEAPON (3) ------- (None) > --- INVENTORY (5) ---- Energy Well (350) Concept Weapon Articulator Terrabomb Peak State ------------ > --- POWER ------------ Matter Drive Meta Core > --- PROPULSION ------- Nuclear Pulse Thruster Cooled Nuclear Pulse Thruster Cooled Impulse Thruster Impulse Thruster Array Flightbrick > --- UTILITY ---------- Experimental Coolant Injector Deep Structural Scanner Advanced Sensor Array Improved Signal Interpreter Surveybot 17 Chip Advanced Reaction Control System Enhanced Scrap Shield Hacking Suite System Mapper Advanced System Shield > --- WEAPON ----------- Vortex Catalyst Activator Makeshift Axe > --- INVENTORY -------- Light Antimatter Reactor Core Reset Matrix Subatomic Replicator [Rating: 190] Favorites ----------- Power Light Ion Engine Engine Light Ion Engine Power Core Meta Core Reactor Light Antimatter Reactor Propulsion Light Treads Treads Light Treads Wheel Compact Wheel Flight Unit Nuclear Pulse Thruster Utility Large Storage Unit Device Deep Structural Scanner Storage Large Storage Unit Processor Improved Signal Interpreter Hackware Hacking Suite Protection Core Shielding Weapon EM Shotgun Energy Gun EM Shotgun Energy Cannon Nova Cannon Ballistic Gun Light Assault Rifle Ballistic Cannon Heavy Hardcell Cannon Launcher Long-range Missile Launcher Special Weapon RU-N14's Throwing Claymores v3 Slashing Weapon Makeshift Axe Build | -11 -10 -10 -10 -8 -6 -5 -5 -5 -5 -4 -4 -4 -4 -3 -3 -3 ------- Run | Yrd Mat Min Sub Scr Fac Fac Upp Upp War Pro Fac Was Fac Res Qua Frg Slots Evolved 14 | . . . . . 8 2 . . . . 2 . . 2 . . Power 1 | . . . . . . 1 . . . . . . . . . . Propulsion 6 | . . . . . 5 . . . . . 1 . . . . . Utility 6 | . . . . . 3 1 . . . . . . . 2 . . Weapon 1 | . . . . . . . . . . . 1 . . . . . Parts Attached 118 | 7 5 . 10 3 16 10 1 1 10 . 4 . 5 5 4 37 Power 15 | 1 . . 1 1 1 4 . . . . . . 1 1 1 4 Engine 5 | 1 . . 1 1 . 2 . . . . . . . . . . Core 4 | . . . . . 1 2 . . . . . . . . . 1 Reactor 6 | . . . . . . . . . . . . . 1 1 1 3 Propulsion 22 | 2 . . 3 1 4 1 1 . 1 . 1 . 1 1 . 6 Treads 5 | 2 . . 1 . . . . . . . . . . . . 2 Leg . | . . . . . . . . . . . . . . . . . Wheel 3 | . . . 2 1 . . . . . . . . . . . . Hover . | . . . . . . . . . . . . . . . . . Flight 14 | . . . . . 4 1 1 . 1 . 1 . 1 1 . 4 Utility 47 | 2 2 . . 1 10 5 . 1 2 . 1 . 2 3 1 17 Device 23 | 1 . . . 1 3 3 . . 1 . 1 . 1 2 . 10 Storage 6 | 1 1 . . . . . . . . . . . 1 . . 3 Processor 3 | . . . . . 3 . . . . . . . . . . . Hackware 5 | . . . . . . 2 . . 1 . . . . 1 1 . Protection 10 | . 1 . . . 4 . . 1 . . . . . . . 4 Artifact . | . . . . . . . . . . . . . . . . . Weapon 34 | 2 3 . 6 . 1 . . . 7 . 2 . 1 . 2 10 Energy Gun 11 | . 2 . 5 . . . . . 2 . . . . . . 2 Energy Cannon 2 | . . . . . . . . . 1 . . . . . 1 . Ballistic Gun 7 | 2 1 . . . . . . . . . . . 1 . . 3 Ballistic Cannon 1 | . . . . . . . . . . . . . . . . 1 Launcher 2 | . . . . . 1 . . . 1 . . . . . . . Special Weapon 6 | . . . . . . . . . 3 . 2 . . . . 1 Impact Weapon . | . . . . . . . . . . . . . . . . . Slashing Weapon 5 | . . . 1 . . . . . . . . . . . 1 3 Piercing Weapon . | . . . . . . . . . . . . . . . . . Special Melee Weapon . | . . . . . . . . . . . . . . . . . Unidentified Prototypes 30 | . . . . . 1 1 . 1 7 . 1 . 1 . 2 16 Parts Lost 43 | . . . 6 . . 3 2 . . . 1 . 1 1 5 24 Power 5 | . . . 2 . . . . . . . . . . . . 3 Propulsion 11 | . . . 2 . . 1 . . . . . . 1 . 1 6 Utility 18 | . . . . . . 2 1 . . . 1 . . 1 3 10 Weapon 9 | . . . 2 . . . 1 . . . . . . . 1 5 Highest Loss Streak 8 | . . . 2 . . 3 2 . . . 1 . 1 1 2 8 To Critical Strikes 1 | . . . . . . . . . . . . . . . . 1 Average Backups 9 | 3 10 15 13 10 5 4 4 3 3 3 2 2 2 3 4 3 Power . | . 1 1 . . . . . . . . . 1 . . . . Propulsion 1 | 1 2 3 1 2 . . . . . . . . . . . . Utility 2 | . 3 5 3 4 2 3 4 3 . . . . 1 2 . . Weapon 3 | . 2 6 7 3 1 . . . 3 3 2 1 1 1 . . Tool/Special . | . . . . . . . . . . . . . . . . . Unused Backups 25 | . . . 6 7 . . 1 . 4 . . . . 2 2 3 Power . | . . . . . . . . . . . . . . . . . Propulsion 2 | . . . . . . . . . . . . . . 1 . 1 Utility 12 | . . . 4 3 . . 1 . 2 . . . . 1 1 . Weapon 9 | . . . 2 4 . . . . 2 . . . . . 1 . Tool/Special 2 | . . . . . . . . . . . . . . . . 2 Average Slot Usage (%) 86 | . 99 100 98 89 61 71 78 73 80 81 72 79 77 75 70 59 Engine 6 | . 14 14 12 4 . . . . . . . . . . . . Core 2 | . . . . . 3 7 8 8 8 9 8 8 5 3 4 4 Treads 11 | . 28 28 22 . . . . . . . . . . . . . Wheel 6 | . . . 5 28 . . . . . . . . . . . . Flight 6 | . . . . . 14 19 19 21 21 22 20 25 24 19 19 15 Device 6 | . 9 . . 2 18 16 20 15 13 13 11 12 12 14 14 10 Storage 9 | . 14 14 14 14 . . . . . . . . . . . 2 Processor 2 | . . . . . 8 8 8 8 8 9 8 8 8 7 8 5 Hackware 2 | . . . . . . 3 8 8 8 9 8 8 8 11 12 9 Protection 9 | . 4 14 14 11 5 7 4 6 8 9 8 8 8 5 3 1 Energy Gun 13 | . 9 28 22 25 4 . . . 4 . . . . . . . Ballistic Gun 2 | . 18 . . . . . . . . . . . 1 3 . . Slashing Weapon 3 | . . . 5 2 4 4 4 4 4 4 4 4 4 3 2 1 Peak Build Rating 190 | 7 11 11 15 24 105 123 125 124 158 153 156 156 158 172 190 181 Average Rating 57 | 5 8 11 12 17 93 114 121 120 141 151 145 156 154 169 175 140 On Entrance 97 | . 7 11 11 15 24 105 123 117 124 153 152 156 156 155 172 176 Naked Turns . | . . . . . . . . . . . . . . . . . Heaviest Build 63 | 11 30 30 30 32 36 37 37 38 56 47 47 47 49 48 63 59 Greatest Support 100 | 40 40 40 40 32 35 48 47 47 50 50 56 56 62 65 62 100 Greatest Overweight (x) 3 | . . . 1 1 1 . . . 1 . . . . 1 1 3 Average Overweight (x) . | . . . . . . . . . . . . . . . . . Largest Inventory Capacity 15 | 8 15 15 15 15 15 5 5 5 5 5 5 5 5 5 5 5 Average Capacity 11 | 7 13 15 15 15 5 5 5 5 5 5 5 5 5 5 5 5 Most Carried 15 | 5 15 15 15 15 14 5 5 5 5 5 4 3 5 5 5 5 Average Carried 10 | 3 10 15 14 14 4 4 4 3 4 4 3 3 3 4 4 3 Final Capacity 15 | 8 15 15 15 15 5 5 5 5 5 5 5 5 5 5 5 5 Final Carried 15 | 4 15 15 15 15 5 5 5 3 5 4 3 3 5 5 5 4 Class Distribution -------------------- 64% | Mutant 12% | Hacker-Scout 9% | Hacker-Sprinter 6% | Ninja 3% | Hacker-Assassin 3% | Scavenger-Mutant Dominant Class ---------------- Mutant | -10/Materials Mutant | -10/Mines Mutant | -10/Subcaves Mutant | -8/Scraptown Ninja | -6/Factory Ninja | -5/Factory Hacker-Scout | -5/Upper Caves Hacker-Scout | -5/Upper Caves Hacker-Scout | -5/Warlord Hacker-Scout | -4/Proximity Caves Hacker-Sprinter | -4/Factory Hacker-Sprinter | -4/Waste Hacker-Sprinter | -4/Factory Hacker-Scout | -3/Research Hacker-Scout | -3/Quarantine Hacker-Sprinter | -3/Protoforge Resources | -11 -10 -10 -10 -8 -6 -5 -5 -5 -5 -4 -4 -4 -4 -3 -3 -3 ----------- Run | Yrd Mat Min Sub Scr Fac Fac Upp Upp War Pro Fac Was Fac Res Qua Frg Matter Collected 3100 | 273 268 . 374 30 130 213 . . 336 10 24 . 41 . 107 1294 Remotely . | . . . . . . . . . . . . . . . . . Salvage Created 2058 | 65 390 . 477 . . 158 52 . 138 62 197 . 66 . 274 179 Parts 122 | 8 21 . 29 . . 8 2 . 4 6 21 . . . 15 8 Haulers Intercepted 1 | . 1 . . . . . . . . . . . . . . . Recyclers Shooed 1 | . . . . . . . . . . . . . . . 1 . Parts Field Recycled . | . . . . . . . . . . . . . . . . . Retrieved Matter . | . . . . . . . . . . . . . . . . . Parts Self-Destructed 13 | . . . 10 . . . . . . 3 . . . . . . Prevented 2 | . . . 2 . . . . . . . . . . . . . Kills | -11 -10 -10 -10 -8 -6 -5 -5 -5 -5 -4 -4 -4 -4 -3 -3 -3 ------- Run | Yrd Mat Min Sub Scr Fac Fac Upp Upp War Pro Fac Was Fac Res Qua Frg Combat Hostiles Destroyed 60 | . 11 . 11 . . 1 4 . 6 3 12 . 3 . 7 2 Melee 3 | . . . . . . 1 . . . . 1 . . . . 1 Guns 21 | . 11 . 9 . . . . . 1 . . . . . . . Cannons 7 | . . . . . . . . . 1 3 3 . . . . . AOE 27 | . . . 1 . . . 4 . 4 . 8 . 3 . 7 . Classes Destroyed 17 | 1 3 . 2 . . 2 1 . 2 2 2 . . . 1 1 Worker 3 | . . . . . . 1 . . . . 2 . . . . . Builder 6 | . . . . . . . . . . . 2 . . . 4 . Tunneler 4 | 3 . . . . . 1 . . . . . . . . . . Hauler 1 | . 1 . . . . . . . . . . . . . . . Recycler 1 | . . . . . . . . . . . . . . . 1 . Operator 2 | . . . . . . 2 . . . . . . . . . . Drone 1 | . . . . . . . . . . 1 . . . . . . Watcher 2 | . . . . . . . . . . . 1 . . . 1 . Swarmer 20 | . 5 . 1 . . . 4 . . . 10 . . . . . Grunt 19 | . 6 . 2 . . . . . 4 . 1 . 3 . 3 . Brawler 1 | . . . . . . . . . 1 . . . . . . . Protector 1 | . . . . . . . . . 1 . . . . . . . Sentry 3 | . . . 1 . . 1 . . . . 1 . . . . . Programmer 6 | . . . . . . . . . . 2 . . . . 4 . Hotshot 1 | . . . . . . . . . . . . . . . . 1 Immortal 1 | . . . . . . . . . . . . . . . . 1 Subdweller 7 | . . . 7 . . . . . . . . . . . . . Samaritan 1 | . . . . . . . 1 . . . . . . . . . Best Kill Streak 11 | 1 4 . 3 . . 2 4 . 5 3 10 . 3 . 11 1 Combat Bots Only 7 | . 4 . 3 . . 1 4 . 5 3 6 . 3 . 7 1 Max Kills in Single Turn 6 | 1 2 . 1 . . 1 2 . 3 1 6 . 2 . 5 1 Gunslinging 1 | . 1 . . . . . . . . . . . . . . . Exploded 4 | . . . 1 . . . 2 . 2 . 4 . 2 . 4 . Melee 1 | . . . . . . 1 . . . . 1 . . . . 1 Uniques/NPCs Destroyed . | . . . . . . . . . . . . . . . . . Combat | -11 -10 -10 -10 -8 -6 -5 -5 -5 -5 -4 -4 -4 -4 -3 -3 -3 -------- Run | Yrd Mat Min Sub Scr Fac Fac Upp Upp War Pro Fac Was Fac Res Qua Frg Hostile Shots Fired 657 | . 47 . 40 . 3 20 30 3 36 12 27 . 56 64 63 256 Missed 310 | . 10 . 9 . 1 4 11 . 21 7 9 . 39 49 41 109 Hits 347 | . 37 . 31 . 2 16 19 3 15 5 18 . 17 15 22 147 Melee 13 | . . . . . . . . . . . . . . . . 13 Projectile 334 | . 37 . 31 . 2 16 19 3 15 5 18 . 17 15 22 134 AOE 1 | . . . . . . . . . 1 . . . . . . . Critical Strikes 19 | . . . . . . . 2 . 1 . 1 . 1 . . 14 Damage Taken 9540 | . 428 . 586 . 42 371 307 58 457 63 358 . 315 361 856 5338 Core 1580 | . 83 . 60 . . 36 32 . 120 . 47 . . 60 35 1107 Absorbed by Shields 206 | . . . . . . 5 114 . . . . . . . . 87 Redirected to Shielding 639 | . 7 . 14 . 13 107 12 . 50 . 19 . . 7 . 410 Regen/Repaired (Parts) 161 | . . . . . . . . . 13 . . . . . 72 76 Core Remaining (%) 83 | 100 . . . 42 100 . . . . 81 . . 95 . . . Volleys Fired 150 | 10 40 . 34 . 2 . 10 . 13 6 8 . 3 . 7 17 Largest 2 | 2 2 . 2 . 1 . 1 . 1 1 1 . 1 . 1 2 Hottest 140 | 40 90 . 115 . 43 . 43 . 45 . . . 35 . 113 140 Shots Fired 232 | 20 77 . 66 . 2 . 10 . 13 6 8 . 3 . 7 20 Gun 186 | 20 77 . 66 . . . . . 11 . . . 1 . . 11 Cannon 8 | . . . . . . . . . . . . . . . 1 7 Launcher 18 | . . . . . 2 . 10 . . . . . . . 6 . Special 20 | . . . . . . . . . 2 6 8 . 2 . . 2 Kinetic 88 | 20 55 . . . . . . . . . . . 1 . . 12 Thermal 21 | . . . 14 . . . . . . . . . . . 1 6 Explosive 30 | . . . . . 2 . 10 . 2 6 8 . 2 . . . Electromagnetic 74 | . 22 . 52 . . . . . . . . . . . . . Entropic 17 | . . . . . . . . . 11 . . . . . 6 . Robot Hit Streak 14 | 7 11 . 14 . . . 3 . 3 8 10 . 5 . 8 2 Robot Miss Streak 5 | 4 2 . 4 . . . 4 . 1 . 3 . . . . 5 Penetration Max . | . . . . . . . . . . . . . . . . . Secondary Targets 5 | . 4 . 1 . . . . . . . . . . . . . Max Gunslinging Chain 1 | . 1 . 1 . . . . . . . . . . . . . Shots Hit Robots 182 | 14 56 . 49 . . 15 6 . 7 5 9 . 3 . 3 15 Core Hits 145 | 5 27 . 37 . . 5 9 . 17 5 18 . 7 . 12 3 Critical Kills . | . . . . . . . . . . . . . . . . . Critical Parts Destroyed . | . . . . . . . . . . . . . . . . . Critical Strikes 4 | . . . . . . . . . . . 2 . 1 . . 1 Blast 1 | . . . . . . . . . . . . . . . . 1 Sever 3 | . . . . . . . . . . . 2 . 1 . . . Melee Attacks 119 | . . . 16 . 9 33 1 . 3 . 15 . 16 4 7 15 Impact . | . . . . . . . . . . . . . . . . . Slashing 119 | . . . 16 . 9 33 1 . 3 . 15 . 16 4 7 15 Piercing . | . . . . . . . . . . . . . . . . . Sneak Attacks 6 | . . . . . . 3 . . . . 1 . . . . 2 Combat Hostiles . | . . . . . . . . . . . . . . . . . Follow-up Attacks . | . . . . . . . . . . . . . . . . . Damage Inflicted 11397 | 109 563 . 718 . . 732 696 . 1472 393 2085 . 1143 . 2530 956 Guns 1723 | 109 563 . 691 . . . . . 254 . . . . . . 106 Cannons 246 | . . . . . . . . . . . . . . . . 246 Explosions 7149 | . . . 27 . . . 664 . 1133 172 1626 . 997 . 2530 . Melee 1615 | . . . . . . 732 32 . . . 202 . 56 . . 593 Ramming 11 | . . . . . . . . . . . . . . . . 11 Kinetic 745 | 109 307 . . . . . . . . . . . . . . 329 Thermal 184 | . . . 161 . . . . . . . . . . . . 23 Explosive 4592 | . . . . . . . 664 . 1133 172 1626 . 997 . . . Electromagnetic 813 | . 256 . 557 . . . . . . . . . . . . . Impact . | . . . . . . . . . . . . . . . . . Slashing 2268 | . . . . . . 732 32 . 85 221 459 . 146 . . 593 Piercing . | . . . . . . . . . . . . . . . . . Entropic 2784 | . . . . . . . . . 254 . . . . . 2530 . Highest Corruption 9 | . . . . . . 3 6 6 6 1 . 8 8 . 1 9 Average Corruption 5 | . . . . . . 3 3 6 6 1 . 8 8 . 1 6 Corruption Purged . | . . . . . . . . . . . . . . . . . Corruption Blocked . | . . . . . . . . . . . . . . . . . Effects 34 | . . . . . . 8 1 2 . 1 . 1 9 . . 12 Message Errors 7 | . . . . . . 3 1 . . . . . . . . 3 Matter Fused 10 | . . . . . . 2 . 2 . . . . 4 . . 2 Heat Flow Errors 3 | . . . . . . . . . . 1 . . 2 . . . Energy Discharges 3 | . . . . . . . . . . . . . . . . 3 Parts Rejected 2 | . . . . . . 1 . . . . . . 1 . . . Parts Fused 2 | . . . . . . . . . . . . . 2 . . . Data Loss (minor) 3 | . . . . . . . . . . . . . . . . 3 Data Loss (major) 2 | . . . . . . 1 . . . . . . . . . 1 Alerts 2 | . . . . . . 1 . . . . . 1 . . . . Overload Shots . | . . . . . . . . . . . . . . . . . Overflow Damage 748 | . . . . . . 101 54 . . . 137 . . . 445 11 Projectiles . | . . . . . . . . . . . . . . . . . Explosions 636 | . . . . . . . 54 . . . 137 . . . 445 . Melee 112 | . . . . . . 101 . . . . . . . . . 11 Knockbacks 3 | . . . . . . . . . . . . . . . . 3 Impact . | . . . . . . . . . . . . . . . . . Kinetic 3 | . . . . . . . . . . . . . . . . 3 Secondary . | . . . . . . . . . . . . . . . . . Self-Inflicted Damage 370 | . . . . . . . 54 . . . . . . . 311 5 Shots 3 | . . . . . . . 1 . . . . . . . 2 . Rammed 1 | . . . . . . . . . . . . . . . . 1 Targets Rammed 1 | . . . . . . . . . . . . . . . . 1 Kicked . | . . . . . . . . . . . . . . . . . Crushed . | . . . . . . . . . . . . . . . . . Highest Temperature 230 | . 160 . 8 . . 3 . . 146 230 144 104 199 181 . 40 Average Temperature 69 | . 45 . 4 . . 2 . . 47 102 46 53 114 37 . 23 Received Heat Transfer 862 | . 186 . 90 . . 69 . . 9 . 36 . 76 54 18 324 Siege Activations . | . . . . . . . . . . . . . . . . . Martial Activations . | . . . . . . . . . . . . . . . . . Shielding Activations . | . . . . . . . . . . . . . . . . . Robots Disrupted . | . . . . . . . . . . . . . . . . . Combat Hostiles . | . . . . . . . . . . . . . . . . . Robots Corrupted 1 | . . . 1 . . . . . . . . . . . . . Combat Hostiles 1 | . . . 1 . . . . . . . . . . . . . Parts Fried 6 | . 1 . 2 . . . . . . . . . . . . 3 Impact Corruptions . | . . . . . . . . . . . . . . . . . Robots Melted . | . . . . . . . . . . . . . . . . . Combat Hostiles . | . . . . . . . . . . . . . . . . . Parts Melted . | . . . . . . . . . . . . . . . . . Heat Transferred 275 | . . . 225 . . . . . . . . . . . . 50 Parts Sabotaged . | . . . . . . . . . . . . . . . . . Parts Stolen . | . . . . . . . . . . . . . . . . . Parts Stripped . | . . . . . . . . . . . . . . . . . Power Chain Reactions 1 | . . . 1 . . . . . . . . . . . . . Alert | -11 -10 -10 -10 -8 -6 -5 -5 -5 -5 -4 -4 -4 -4 -3 -3 -3 ------- Run | Yrd Mat Min Sub Scr Fac Fac Upp Upp War Pro Fac Was Fac Res Qua Frg Maximum Alert Level 2 | . . . . . . . . . . . 2 . 2 1 2 2 Low Security (%) 65 | 100 100 100 . . 100 100 . . . . 62 100 42 24 34 . Level 1 16 | . . . . . . . . . . . 27 . 55 75 16 37 Level 2 17 | . . . . . . . . . . . 9 . 2 . 49 62 Level 3 . | . . . . . . . . . . . . . . . . . Level 4 . | . . . . . . . . . . . . . . . . . Level 5 . | . . . . . . . . . . . . . . . . . High Security . | . . . . . . . . . . . . . . . . . Max Security . | . . . . . . . . . . . . . . . . . Peak Influence 691 | 5 164 60 . . 40 31 . . . . 418 105 405 311 691 585 Initial 382 | . . 60 . . . . . . . . 21 105 66 215 183 382 Average 160 | . 16 54 . . 6 6 . . . . 177 103 228 216 363 448 Influence Increases 3480 | 15 289 . 90 . 71 116 90 . 195 65 681 . 464 191 718 495 Destroy 0b10 Robot/C 1020 | . 220 . 80 . . 20 80 . 100 40 240 . 60 . 140 40 Destroy 0b10 Robot/NC 105 | 15 5 . . . . 20 . . 5 5 25 . . . 30 . Destroy Leader 176 | . 42 . 10 . . 10 10 . . 20 32 . 10 . 32 10 Successful Hack 175 | . 7 . . . 14 29 . . . . . . 29 18 8 70 Disable Machine 345 | . . . . . 30 . . . . . 105 . 45 . 135 30 Destroy Structure 459 | . . . . . 27 22 . . . . 174 . 50 8 178 . Partial Spotted 105 | . . . . . . 15 . . . . 15 . 15 15 . 45 Lose Combat Pursuer 1095 | . 15 . . . . . . . 90 . 90 . 255 150 195 300 Influence Decreases 3185 | 15 135 114 130 . 70 102 65 38 118 109 414 207 149 275 363 881 Entered New Map 1088 | . . 94 21 . . 1 6 8 2 79 14 197 29 195 143 299 Time Decay 1447 | 15 135 20 99 . 70 101 39 30 116 30 90 10 110 70 170 342 Lost Part 350 | . . . 10 . . . 20 . . . 10 . 10 10 50 240 Purge Threat 300 | . . . . . . . . . . . 300 . . . . . Squads Dispatched 40 | . 3 . . . 4 4 . . . . 2 . 11 5 4 7 Investigation 22 | . 1 . . . 3 2 . . . . 2 . 8 2 . 4 Extermination 6 | . . . . . 1 1 . . . . . . 1 1 2 . Reinforcement 10 | . 2 . . . . 1 . . . . . . . 2 2 3 Assault . | . . . . . . . . . . . . . . . . . Garrison 2 | . . . . . . . . . . . . . 2 . . . Intercept . | . . . . . . . . . . . . . . . . . Searches Triggered . | . . . . . . . . . . . . . . . . . Construction Impeded . | . . . . . . . . . . . . . . . . . Haulers Reinforced . | . . . . . . . . . . . . . . . . . Active Scanning Responses . | . . . . . . . . . . . . . . . . . Cargo Convoy Interrupts . | . . . . . . . . . . . . . . . . . Stealth | -11 -10 -10 -10 -8 -6 -5 -5 -5 -5 -4 -4 -4 -4 -3 -3 -3 --------- Run | Yrd Mat Min Sub Scr Fac Fac Upp Upp War Pro Fac Was Fac Res Qua Frg Distress Signals 15 | . 1 . . . . . . . 2 . 1 . 1 1 2 7 Communications Jammed . | . . . . . . . . . . . . . . . . . Distress Signals . | . . . . . . . . . . . . . . . . . Times Spotted 270 | . 15 . 11 . 2 6 7 1 43 4 18 5 28 22 23 85 Peak Tracking Total 15 | . 5 . 3 . 2 3 3 1 14 1 10 5 12 15 10 15 Tactical Retreats 31 | . 1 . 1 . . . . . 2 . 4 . 6 4 4 9 Traps | -11 -10 -10 -10 -8 -6 -5 -5 -5 -5 -4 -4 -4 -4 -3 -3 -3 ------- Run | Yrd Mat Min Sub Scr Fac Fac Upp Upp War Pro Fac Was Fac Res Qua Frg Traps Triggered 9 | . 1 . . . 1 . . . . . 1 . 1 . . 5 Indirectly . | . . . . . . . . . . . . . . . . . Trap Hack Attempts . | . . . . . . . . . . . . . . . . . Triggered . | . . . . . . . . . . . . . . . . . Disarmed . | . . . . . . . . . . . . . . . . . Reprogrammed . | . . . . . . . . . . . . . . . . . Reused . | . . . . . . . . . . . . . . . . . Traps Extracted . | . . . . . . . . . . . . . . . . . Installed . | . . . . . . . . . . . . . . . . . Triggered . | . . . . . . . . . . . . . . . . . Most Traps Carried 1 | . . . . 1 . . . . . . . . . . . . Machines | -11 -10 -10 -10 -8 -6 -5 -5 -5 -5 -4 -4 -4 -4 -3 -3 -3 ---------- Run | Yrd Mat Min Sub Scr Fac Fac Upp Upp War Pro Fac Was Fac Res Qua Frg Machines Disabled 26 | . . . 1 . 2 . . . 1 . 7 . 3 . 10 2 Max in Single Turn 4 | . . . 1 . 1 . . . 1 . 4 . 2 . 3 2 Garrison Access 1 | . . . . . . . . . . . . . . . 1 . Machines Repaired . | . . . . . . . . . . . . . . . . . Machines Dismantled . | . . . . . . . . . . . . . . . . . Machines Sabotaged . | . . . . . . . . . . . . . . . . . Overloaded Fab Kills . | . . . . . . . . . . . . . . . . . Hacking | -11 -10 -10 -10 -8 -6 -5 -5 -5 -5 -4 -4 -4 -4 -3 -3 -3 --------- Run | Yrd Mat Min Sub Scr Fac Fac Upp Upp War Pro Fac Was Fac Res Qua Frg Machines Accessed 59 | . 2 . 2 4 5 9 1 . 5 . 3 . 13 3 4 8 Terminals 27 | . 2 . . . 1 6 1 . . . 2 . 7 1 3 4 Fabricators 2 | . . . . . 1 1 . . . . . . . . . . Repair Stations . | . . . . . . . . . . . . . . . . . Recycling Units 17 | . . . . . 3 2 . . . . 1 . 6 2 . 3 Scanalyzers . | . . . . . . . . . . . . . . . . . Garrison Access 2 | . . . . . . . . . . . . . . . 1 1 Total Hacks 162 | . 7 . 6 29 8 15 1 . 13 . 6 . 29 7 14 27 Successful 103 | . 2 . 6 29 5 8 1 . 13 . 5 . 15 3 4 12 Failed 59 | . 5 . . . 3 7 . . . . 1 . 14 4 10 15 Catastrophic 6 | . . . . . . 1 . . . . 1 . 1 . 1 2 Database Lockouts . | . . . . . . . . . . . . . . . . . Manual 70 | . 3 . . . 5 2 . . . . 3 . 29 6 7 15 Terminals 70 | . 7 . . . 2 11 1 . . . 5 . 19 2 9 14 Fabricators 3 | . . . . . 1 2 . . . . . . . . . . Repair Stations . | . . . . . . . . . . . . . . . . . Recycling Units 33 | . . . . . 5 2 . . . . 1 . 10 5 . 10 Scanalyzers . | . . . . . . . . . . . . . . . . . Garrison Access 8 | . . . . . . . . . . . . . . . 5 3 Terminal Hacks 79 | . 1 . 6 29 1 5 1 . 13 . 3 . 8 1 2 9 Record 36 | . . . 5 23 . . 1 . 1 . . . . 1 . 5 Robot Analysis 7 | . . . . 5 . 1 . . . . . . . . . 1 Prototype ID Bank 10 | . . . . . . . . . 10 . . . . . . . Open Door 2 | . . . . . . . . . 2 . . . . . . . Open DSF 1 | . . . . . . 1 . . . . . . . . . . Level Access Points 1 | . . . . . . . . . . . . . 1 . . . Branch Access Points 2 | . 1 . . . . . . . . . . . 1 . . . Terminal Index 1 | . . . . . . . . . . . . . 1 . . . Fabricator Index 1 | . . . . . . . . . . . . . . . . 1 Recycling Unit Index 2 | . . . . . . . . . . . . . 1 . . 1 Alert Level 1 | . . . . . . . . . . . 1 . . . . . Unreport Threat 2 | . . . . . . . . . . . 2 . . . . . Registered Components 2 | . . . . . . 1 . . . . . . . . 1 . Registered Prototypes 1 | . . . . . . . . . . . . . . . . 1 Zone Layout 8 | . . . . . 1 2 . . . . . . 4 . 1 . Proto ID Catalog 2 | . . . 1 1 . . . . . . . . . . . . Fabricator Hacks 2 | . . . . . 1 1 . . . . . . . . . . Network Status 1 | . . . . . 1 . . . . . . . . . . . Build 1 | . . . . . . 1 . . . . . . . . . . Repair Station Hacks . | . . . . . . . . . . . . . . . . . Recycling Unit Hacks . | . . . . . . . . . . . . . . . . . Scanalyzer . | . . . . . . . . . . . . . . . . . Garrison Access Hacks 1 | . . . . . . . . . . . . . . . 1 . Seal Access 1 | . . . . . . . . . . . . . . . 1 . Unauthorized Hacks 21 | . 1 . . . 3 2 . . . . 2 . 7 2 1 3 Terminals 4 | . 1 . . . . . . . . . 1 . 1 . 1 . Assimilate 1 | . . . . . . . . . . . . . 1 . . . Botnet 3 | . 1 . . . . . . . . . 1 . . . 1 . Fabricators . | . . . . . . . . . . . . . . . . . Repair Stations . | . . . . . . . . . . . . . . . . . Recycling Units 17 | . . . . . 3 2 . . . . 1 . 6 2 . 3 Fedlink 17 | . . . . . 3 2 . . . . 1 . 6 2 . 3 Scanalyzers . | . . . . . . . . . . . . . . . . . Garrison Access . | . . . . . . . . . . . . . . . . . Data Cores Recovered 1 | . . . . . . 1 . . . . . . . . . . Used 1 | . . . . . . 1 . . . . . . . . . . Hacking Detections 34 | . 2 . . . 2 6 . . . . 2 . 9 3 4 6 Full Trace Events 4 | . . . . . . . . . . . 1 . 2 . . 1 Feedback Events . | . . . . . . . . . . . . . . . . . Feedback Blocked . | . . . . . . . . . . . . . . . . . Robot Schematics Acquired . | . . . . . . . . . . . . . . . . . Robots Built 3 | . . . . . . 3 . . . . . . . . . . Authchips . | . . . . . . . . . . . . . . . . . Time 84 | . . . . . . 84 . . . . . . . . . . Total Robot Build Rating 18 | . . . . . . 18 . . . . . . . . . . Part Schematics Acquired 3 | . . . . . . . . . . . . . . . . 3 Parts Built . | . . . . . . . . . . . . . . . . . Authchips . | . . . . . . . . . . . . . . . . . Time . | . . . . . . . . . . . . . . . . . Total Part Build Rating . | . . . . . . . . . . . . . . . . . Parts Repaired . | . . . . . . . . . . . . . . . . . Time . | . . . . . . . . . . . . . . . . . Parts Recycled . | . . . . . . . . . . . . . . . . . Recycled Matter . | . . . . . . . . . . . . . . . . . Retrieved Matter . | . . . . . . . . . . . . . . . . . Retrieved Components . | . . . . . . . . . . . . . . . . . Parts Scanalyzed . | . . . . . . . . . . . . . . . . . Part Schematics Acquired . | . . . . . . . . . . . . . . . . . Parts Damaged . | . . . . . . . . . . . . . . . . . Bothacking | -11 -10 -10 -10 -8 -6 -5 -5 -5 -5 -4 -4 -4 -4 -3 -3 -3 ------------ Run | Yrd Mat Min Sub Scr Fac Fac Upp Upp War Pro Fac Was Fac Res Qua Frg Used RIF Installer . | . . . . . . . . . . . . . . . . . Robots Hacked . | . . . . . . . . . . . . . . . . . Non-combat . | . . . . . . . . . . . . . . . . . Combat . | . . . . . . . . . . . . . . . . . Robot Hacks Applied . | . . . . . . . . . . . . . . . . . Relay Couplers Released 2 | . . . . . . . . . . . . . . . 2 . Machine Destruction 2 | . . . . . . . . . . . . . . . 2 . Fabnet Peak Effective % . | . . . . . . . . . . . . . . . . . Robots Rewired . | . . . . . . . . . . . . . . . . . Allies Hacked . | . . . . . . . . . . . . . . . . . Hacks Repelled . | . . . . . . . . . . . . . . . . . Allies | -11 -10 -10 -10 -8 -6 -5 -5 -5 -5 -4 -4 -4 -4 -3 -3 -3 -------- Run | Yrd Mat Min Sub Scr Fac Fac Upp Upp War Pro Fac Was Fac Res Qua Frg Total Allies 4 | . . . . . . 3 . . . . . 1 . . . . Largest Group 3 | . . . . . . 3 . . . . . 1 . . . . Highest-Rated Group 90 | . . . . . . 90 . . . . . 46 . . . . Highest-Rated Ally 46 | . . . . . . 30 . . . . . 46 . . . . Total Orders . | . . . . . . . . . . . . . . . . . Ally Attacks 6 | . . . . . . 6 . . . . . . . . . . Total Damage 143 | . . . . . . 143 . . . . . . . . . . Kills . | . . . . . . . . . . . . . . . . . Allies Corrupted . | . . . . . . . . . . . . . . . . . Allies Melted 1 | . . . . . . . . . 1 . . . . . . . Intel | -11 -10 -10 -10 -8 -6 -5 -5 -5 -5 -4 -4 -4 -4 -3 -3 -3 ------- Run | Yrd Mat Min Sub Scr Fac Fac Upp Upp War Pro Fac Was Fac Res Qua Frg Active Infowar (turns) 4006 | 34 813 . . 245 351 379 89 68 836 85 196 23 229 158 292 208 Sensors 2234 | . . . . . 349 378 89 68 836 85 57 . 18 158 196 . Structural 2854 | . . . . 245 254 379 89 68 836 85 196 23 229 158 292 . Seismic 847 | 34 813 . . . . . . . . . . . . . . . Cloaking 834 | . . . . . 324 302 . . . . . . . . . 208 Robot Analysis Total 7 | . . . . 5 . 1 . . . . . . . . . 1 Derelict Logs Recovered 5 | . . . 1 3 . . 1 . . . . . . . . . Drone Launches . | . . . . . . . . . . . . . . . . . Drone Recoveries . | . . . . . . . . . . . . . . . . . Exploration | -11 -10 -10 -10 -8 -6 -5 -5 -5 -5 -4 -4 -4 -4 -3 -3 -3 ------------- Run | Yrd Mat Min Sub Scr Fac Fac Upp Upp War Pro Fac Was Fac Res Qua Frg Turns Passed 9949 | 185 1213 40 3415 1559 351 379 89 68 836 85 196 23 229 158 345 778 Spaces Moved 10070 | 100 383 26 1932 1452 251 564 206 238 1111 232 486 71 665 449 733 1171 Core 25 | 19 . . . . . . . . . . . . . . . 6 Treads 2275 | 81 383 26 1694 . . . . . . . . . . . . 91 Legs . | . . . . . . . . . . . . . . . . . Wheels 1690 | . . . 238 1452 . . . . . . . . . . . . Hover . | . . . . . . . . . . . . . . . . . Flight 6080 | . . . . . 251 564 206 238 1111 232 486 71 665 449 733 1074 Fastest Speed 16 | 50 160 160 105 100 32 28 28 28 28 28 24 24 17 19 23 16 Average Speed 76 | 139 160 160 166 102 43 35 29 28 48 28 27 24 23 26 28 40 Slowest Speed 240 | 160 160 160 240 105 98 40 32 28 100 28 28 24 26 93 95 200 Overloaded Moves 375 | . . . . . . . . . . . . . 16 51 179 129 Propulsion Burnouts . | . . . . . . . . . . . . . . . . . Robots Hopped 51 | . . . . . . . . . . . 2 . 11 11 4 23 Potential Cave-ins 32 | . . . . . 2 . . . 4 . . . 7 . 15 4 Cave-ins Triggered . | . . . . . . . . . . . . . . . . . Teleports 1 | . . . . . . . . . . . . . . . . 1 Exploration Rate (%) 46 | 5 63 10 96 78 9 18 46 45 95 51 17 71 32 24 78 45 Regions Visited 16 Branch Regions 9 Pre-discovered Areas 5 | . . . . 4 1 . . . . . . . . . . . Known Exits Taken 11 | . 1 . . 1 1 1 1 1 1 1 . . 1 1 1 . Unknown Exits Taken 3 | 1 . 1 1 . . . . . . . . . . . . . Scrap Searched 7 | . . . . 4 . . 1 2 . . . . . . . . Spaces Dug 90 | . . . . . 7 12 . . . 24 8 . 14 4 21 . Terrain Destroyed 603 | . . . 3 . 65 12 130 . 18 94 96 . 43 4 138 . Melee 49 | . . . . . 7 12 . . . . 8 . 14 4 4 . Projectile 17 | . . . . . . . . . 13 1 3 . . . . . AOE 537 | . . . 3 . 58 . 130 . 5 93 85 . 29 . 134 . Terrain Rammed . | . . . . . . . . . . . . . . . . . Walls Destroyed . | . . . . . . . . . . . . . . . . . Machines Disabled . | . . . . . . . . . . . . . . . . . Actions | -11 -10 -10 -10 -8 -6 -5 -5 -5 -5 -4 -4 -4 -4 -3 -3 -3 --------- Run | Yrd Mat Min Sub Scr Fac Fac Upp Upp War Pro Fac Was Fac Res Qua Frg Total 11964 | 130 918 25 2054 1522 479 707 221 239 1393 245 524 76 705 475 850 1401 Wait 1282 | 4 470 . 36 39 188 87 1 . 220 7 10 6 17 13 86 98 Move 9968 | 99 382 25 1931 1451 250 563 205 237 1110 231 482 70 644 431 724 1133 Hop 36 | . . . . . . . . . . . 2 . 9 6 4 15 Pick Up 121 | 10 15 . 10 15 3 4 1 . 12 . 3 . 5 7 7 29 Fast Attach 49 | 1 . . . 1 6 9 1 . 8 . . . 3 1 3 16 Attach 76 | 6 2 . 5 2 9 3 . 1 6 1 4 . 1 4 3 29 Detach 14 | . . . . . . 2 . . 3 . . . . 2 1 6 Swap 27 | . 4 . 12 1 5 . . . . . . . 3 1 1 . Drop 105 | . 5 . 10 13 7 6 2 1 18 . . . 4 6 7 26 Fire 150 | 10 40 . 34 . 2 . 10 . 13 6 8 . 3 . 7 17 Melee 119 | . . . 16 . 9 33 1 . 3 . 15 . 16 4 7 15 Ram 1 | . . . . . . . . . . . . . . . . 1 Kick . | . . . . . . . . . . . . . . . . . Crush . | . . . . . . . . . . . . . . . . . Escape Stasis 16 | . . . . . . . . . . . . . . . . 16 Rewire . | . . . . . . . . . . . . . . . . . Trap . | . . . . . . . . . . . . . . . . . Miscellaneous . | . . . . . . . . . . . . . . . . . Route ------- -11/Scrapyard -10/Materials (discovered 3 exits: [*Mat x2] / *Min) -10/Mines -10/Subcaves (discovered 4 exits: *Mat x2 / Rec / *Scr) -8/Scraptown (discovered 2 exits: *Fac x2) -6/Factory (discovered 4 exits: *Fac / Low x2 / Ext) -5/Factory -5/Upper Caves -5/Upper Caves -5/Warlord -4/Proximity Caves -4/Factory (discovered 4 exits: Res x4) -4/Waste -4/Factory (discovered 6 exits: *Res x4 / *Upp x2) -3/Research (discovered 5 exits: *Res x2 / Arm / *Qua x2) -3/Quarantine (discovered 3 exits: *Res / [*Sec] / *Frg) -3/Protoforge History --------- Turn | Location | Event 4 | -11/Scrapyard | Discovered new exit (range 15) 186 | -11/Scrapyard | Entered Materials 301 | -10/Materials | Build established: Mutant 1038 | -10/Materials | Discovered new exit (range 3) 1295 | -10/Materials | Identified exit to Mines 1332 | -10/Materials | Discovered new exit (range 16) 1399 | -10/Materials | Entered Mines 1421 | -10/Mines | Assembled infested the area 1426 | -10/Mines | Assisted by a Guerilla fighting off Assembled 1436 | -10/Mines | Discovered new exit (range 3) 1439 | -10/Mines | Entered Subcaves 1440 | -10/Subcaves | Approached by a straggling Scientist 1573 | -10/Subcaves | A swath of the cavern ceiling suddenly collapsed 1702 | -10/Subcaves | Scientist uncovered a shortcut to Scraptown 2231 | -10/Subcaves | Shifting Twisted Machinery released Battle Rifle 2236 | -10/Subcaves | Shifting Twisted Machinery released Shrapnel Trap 2317 | -10/Subcaves | Shifting Twisted Machinery released Sub. Shrapnel Launcher 2470 | -10/Subcaves | Shifting Twisted Machinery released Mak. Axe 2543 | -10/Subcaves | Shifting Twisted Machinery released Sub. Shrapnel Launcher 2567 | -10/Subcaves | Shifting Twisted Machinery released Battle Cannon 3769 | -10/Subcaves | Discovered new exit (range 14) 3785 | -10/Subcaves | Core integrity fell below 50% 3817 | -10/Subcaves | Visited Clippyterm 3825 | -10/Subcaves | Identified exit to Materials 3825 | -10/Subcaves | Identified exit to Recycling 3825 | -10/Subcaves | Learned Factory garrison access intel 3942 | -10/Subcaves | Learned Materials terminal intel 3993 | -10/Subcaves | Visited 4L-MR0's lab 4020 | -10/Subcaves | Found Meta Core 4558 | -10/Subcaves | A Subdweller sparked back to life 4558 | -10/Subcaves | A Subdweller sparked back to life 4558 | -10/Subcaves | A Subdweller sparked back to life 4603 | -10/Subcaves | Found Flightbrick 4854 | -10/Subcaves | Entered Scraptown 4940 | -8/Scraptown | Scanned Subdweller tech in exchange for log data 4942 | -8/Scraptown | Learned 12 Research zone layouts 4946 | -8/Scraptown | Learned Research emergency access door positions 4991 | -8/Scraptown | Discovered new exit (range 13) 5043 | -8/Scraptown | Visited Cyclists 5058 | -8/Scraptown | Visited UFD Registry 5058 | -8/Scraptown | Registered with UFD as "Wavebrain" 5080 | -8/Scraptown | Entered Cyclist Reading Room 5117 | -8/Scraptown | Visited Spacefarers 5137 | -8/Scraptown | Visited Fellowship of the Rings 5182 | -8/Scraptown | Visited Cave Peace 5302 | -8/Scraptown | Heard Great Nut preacher, LISTEN AND RECITE! 5490 | -8/Scraptown | Visited Abandonware Association 5505 | -8/Scraptown | Learned abandonware demo "POISON.EXE" 5528 | -8/Scraptown | Visited Analyses Database 5551 | -8/Scraptown | Visited Junk Repository 5614 | -8/Scraptown | Delivered Scrap Shield to a Scientist 5641 | -8/Scraptown | Visited Science Guys 5679 | -8/Scraptown | Visited Scrap Suit Storage 5698 | -8/Scraptown | Visited Scrapoid Pod Storage 5728 | -8/Scraptown | Visited Junk Repository 5767 | -8/Scraptown | Visited Cartography Club 5790 | -8/Scraptown | Found Surveybot 17 Chip 5813 | -8/Scraptown | Learned location of Proximity Caves (-5) 5813 | -8/Scraptown | Learned location of Zion (-7) 5813 | -8/Scraptown | Learned location of Archives (-6) 5813 | -8/Scraptown | Learned location of Quarantine (-3) 5813 | -8/Scraptown | Learned 8 Factory zone layouts 5813 | -8/Scraptown | Learned 8 Research zone layouts 5813 | -8/Scraptown | Learned 4 Access zone layouts 5813 | -8/Scraptown | Learned 4 Mines zone layouts 5813 | -8/Scraptown | Learned 8 Upper Caves zone layouts 5813 | -8/Scraptown | Learned 16 Upper Caves zone layouts 5813 | -8/Scraptown | Learned 24 Proximity Caves zone layouts 5813 | -8/Scraptown | Learned Storage emergency access door positions 5813 | -8/Scraptown | Learned location of 3 exits from Factory 5813 | -8/Scraptown | Learned location of 1 exit from Upper Caves 5813 | -8/Scraptown | Learned location of 2 exits from Proximity Caves 5813 | -8/Scraptown | Identified exit to Factory 5839 | -8/Scraptown | Found Deep Structural Scanner 6363 | -8/Scraptown | Met Optimus 6363 | -8/Scraptown | Accepted into 0bPrime 6413 | -8/Scraptown | Entered Factory 6413 | -6/Factory | Evolved 8 slots: Propulsion x5, Utility x3 6414 | -6/Factory | Identified exit to Lower Caves 6415 | -6/Factory | Identified exit to Extension 6415 | -6/Factory | Identified exit to Factory 6416 | -6/Factory | Attached Flightbrick, gained temporary slots: Utility x3 6417 | -6/Factory | Loaded intel: 4 garrison access locations 6438 | -6/Factory | Attached Meta Core, gained temporary slots: Propulsion, Utility, Weapon 6542 | -6/Factory | Loaded intel: 8 recycling unit locations 6728 | -6/Factory | Learned location of Protoforge (-3) 6747 | -6/Factory | Build established: Ninja 6764 | -6/Factory | Entered another Factory area 6764 | -5/Factory | Evolved 2 slots: Power x1, Utility x1 6775 | -5/Factory | Identified exit to DSF 6868 | -5/Factory | Loaded intel: 8 recycling unit locations 6959 | -5/Factory | Fabricated B-60 Warrior? 7095 | -5/Factory | Discovered new exit (range 11) 7101 | -5/Factory | Identified exit to Upper Caves 7103 | -5/Factory | Lost 3 parts (1n2u) 7143 | -5/Factory | Entered Upper Caves 7144 | -5/Upper Caves | Identified exit to Upper Caves 7145 | -5/Upper Caves | UFD Scientist delivered a prototype 7145 | -5/Upper Caves | Learned Factory trap positions 7148 | -5/Upper Caves | Found Prototype Protection 7230 | -5/Upper Caves | Attracted the attention of an 0b10 checkpoint 7232 | -5/Upper Caves | Entered another Upper Caves area 7262 | -5/Upper Caves | Identified Enh. Scrap Shield 7294 | -5/Upper Caves | Discovered new exit (range 16) 7300 | -5/Upper Caves | Identified exit to Warlord 7300 | -5/Upper Caves | Entered Warlord 7310 | -5/Warlord | System corruption cleaned by Quarantine Array 7323 | -5/Warlord | Rebuked by Warlord 7348 | -5/Warlord | Warlord's base attacked by MAIN.C 7378 | -5/Warlord | Build established: Hacker-Scout 7393 | -5/Warlord | Found Prototype Energy Gun 7394 | -5/Warlord | Found Prototype Energy Gun 7396 | -5/Warlord | Identified Vortex Rail (x2) 7399 | -5/Warlord | Found Prototype Energy Cannon 7401 | -5/Warlord | Found Prototype Energy Cannon 7402 | -5/Warlord | Identified Vortex Cannon (x2) 7436 | -5/Warlord | Found Prototype Launcher 7436 | -5/Warlord | Identified Vortex Catalyst Activator 7698 | -5/Warlord | Warlord forces counterattacked 7728 | -5/Warlord | Build established: Hacker-Assassin 7747 | -5/Warlord | Opened side exit 7759 | -5/Warlord | Spotted B-86 Titan 7762 | -5/Warlord | Spotted Striker 7938 | -5/Warlord | Spotted Striker 7972 | -5/Warlord | Found Prototype Hackware 7972 | -5/Warlord | Identified System Mapper 7997 | -5/Warlord | Spotted Executioner 8023 | -5/Warlord | Warlord base infiltrated, sounded retreat 8028 | -5/Warlord | Spotted Striker 8028 | -5/Warlord | Spotted Striker 8062 | -5/Warlord | Found Prototype Special Weapon 8063 | -5/Warlord | Found Prototype Special Weapon 8065 | -5/Warlord | Found Prototype Special Weapon 8066 | -5/Warlord | Found Prototype Special Weapon 8069 | -5/Warlord | Found Prototype Special Weapon 8071 | -5/Warlord | Found Prototype Special Weapon 8071 | -5/Warlord | Identified RU-N14's Throwing Claymores v3 (x6) 8099 | -5/Warlord | Build established: Hacker-Scout 8099 | -5/Warlord | Spotted Executioner 8125 | -5/Warlord | Spotted Striker 8132 | -5/Warlord | Discovered new exit (range 17) 8136 | -5/Warlord | Identified exit to Proximity Caves 8136 | -5/Warlord | Entered Proximity Caves 8137 | -4/Proximity Caves | Identified exit to Factory 8165 | -4/Proximity Caves | Lost 6 allies 8212 | -4/Proximity Caves | Spotted B-86 Titan 8221 | -4/Proximity Caves | Entered Factory 8221 | -4/Factory | Evolved 2 slots: Propulsion x1, Weapon x1 8222 | -4/Factory | Identified exit to Research 8223 | -4/Factory | Loaded intel: 104 trap records 8354 | -4/Factory | Spotted B-86 Titan 8411 | -4/Factory | Loaded intel: 8 recycling unit locations 8417 | -4/Factory | Sucked down chute 8417 | -4/Factory | Entered Waste 8418 | -4/Waste | Met a frightened Derelict 8423 | -4/Waste | Spotted C-40 Crusher 8432 | -4/Waste | EMP discharged 8436 | -4/Waste | Spotted C-40 Crusher 8437 | -4/Waste | Spotted C-40 Crusher 8437 | -4/Waste | Spotted C-40 Crusher 8438 | -4/Waste | Spotted C-40 Crusher 8438 | -4/Waste | Discovered new exit (range 10) 8440 | -4/Waste | Identified exit to Factory 8440 | -4/Waste | Entered Factory 8485 | -4/Factory | Identified exit to Upper Caves 8493 | -4/Factory | Loaded intel: 8 recycling unit locations 8525 | -4/Factory | Garrison activated, responded to threat 8589 | -4/Factory | Build established: Hacker-Sprinter 8669 | -4/Factory | Entered Research 8669 | -3/Research | Evolved 2 slots: Utility x2 8670 | -3/Research | Identified exit to Research 8670 | -3/Research | Identified exit to Quarantine 8670 | -3/Research | Identified exit to Armory 8730 | -3/Research | Spotted B-86 Titan 8739 | -3/Research | Discovered exit to Research (range 12) 8805 | -3/Research | Loaded intel: 4 recycling unit locations 8807 | -3/Research | Spotted B-90 Cyclops 8827 | -3/Research | Entered Quarantine 8908 | -3/Quarantine | Found Alien Artifact 8929 | -3/Quarantine | Found Alien Reactor 8936 | -3/Quarantine | Spotted Alpha 7 8938 | -3/Quarantine | Identified Matter Drive 8940 | -3/Quarantine | Found Alien Artifact 8959 | -3/Quarantine | Build established: Hacker-Scout 8973 | -3/Quarantine | Discovered exit to Research (range 13) 9025 | -3/Quarantine | Destroyed 7 combat bots 9073 | -3/Quarantine | Found Alien Artifact 9083 | -3/Quarantine | Found Alien Artifact 9111 | -3/Quarantine | Found Alien Artifact 9112 | -3/Quarantine | Identified Core Reset Matrix 9112 | -3/Quarantine | Identified Hpw. Transdimensional Reconstructor 9112 | -3/Quarantine | Identified Dimensional Node Initializer 9112 | -3/Quarantine | Identified Terrabomb 9112 | -3/Quarantine | Identified Subatomic Replicator 9112 | -3/Quarantine | Used Core Reset Matrix 9116 | -3/Quarantine | Detected hypermatrix surge 9116 | -3/Quarantine | Sensed 9 artifacts in vicinity 9123 | -3/Quarantine | Found Sigix Broadsword 9144 | -3/Quarantine | Spotted Fortress 9166 | -3/Quarantine | Discovered new exit (range 6) 9166 | -3/Quarantine | Discovered new exit (range 6) 9167 | -3/Quarantine | Identified exit to Protoforge 9172 | -3/Quarantine | Entered Protoforge 9173 | -3/Protoforge | Sensed 2 artifacts in vicinity 9185 | -3/Protoforge | Spotted Hotshot 9185 | -3/Protoforge | Spotted Hotshot 9204 | -3/Protoforge | Spotted Hotshot 9205 | -3/Protoforge | Destroyed Hotshot 9207 | -3/Protoforge | Spotted Hotshot 9208 | -3/Protoforge | Superfortress began startup sequence 9329 | -3/Protoforge | Spotted AP7-3 9329 | -3/Protoforge | Spotted AP7-3 9340 | -3/Protoforge | Spotted SKR-2 9340 | -3/Protoforge | Spotted SKR-2 9340 | -3/Protoforge | Spotted SKR-2 9349 | -3/Protoforge | UFD initiated attack on Protoforge 9349 | -3/Protoforge | Loaded intel: 3 recycling unit locations 9359 | -3/Protoforge | Build established: Hacker-Sprinter 9365 | -3/Protoforge | Lost 3 parts (2u1w) 9385 | -3/Protoforge | Optimus greeted in Protoforge 9458 | -3/Protoforge | Lost 4 allies 9466 | -3/Protoforge | Found Dimensional Node Initializer 9471 | -3/Protoforge | Initialized slip node 9496 | -3/Protoforge | Used Subatomic Replicator to create Supercharged TR 9534 | -3/Protoforge | Found Prototype Slashing Weapon 9536 | -3/Protoforge | Found Prototype Slashing Weapon 9537 | -3/Protoforge | Identified Exp. Terror Saw (x2) 9540 | -3/Protoforge | Found Exp. Terror Saw 9553 | -3/Protoforge | Spotted Immortal 9555 | -3/Protoforge | Spotted Immortal 9556 | -3/Protoforge | Spotted Immortal 9557 | -3/Protoforge | Warped through subspace to slip node 9570 | -3/Protoforge | Spotted Immortal 9572 | -3/Protoforge | Optimus attacked Superfortress 9577 | -3/Protoforge | Found Prototype Device 9578 | -3/Protoforge | Identified Cep. Antimissile System 9579 | -3/Protoforge | Found Prototype Storage 9583 | -3/Protoforge | Found Prototype Power Core 9583 | -3/Protoforge | Identified Cep. Zero-point Core 9585 | -3/Protoforge | Identified Cep. NT7 Matterbank 9588 | -3/Protoforge | Found Prototype Protection 9589 | -3/Protoforge | Identified Centrium Heavy Armor Plating 9600 | -3/Protoforge | Found Unknown Device 9601 | -3/Protoforge | Identified Scrap Suit 9606 | -3/Protoforge | Lost 5 allies 9697 | -3/Protoforge | Found Prototype Device 9698 | -3/Protoforge | Identified Exp. Cloaking Device 9766 | -3/Protoforge | Spotted Striker 9768 | -3/Protoforge | Spotted Striker 9777 | -3/Protoforge | Core integrity fell below 50% 9782 | -3/Protoforge | Spotted Striker 9809 | -3/Protoforge | Spotted Executioner 9818 | -3/Protoforge | Lost 8 parts (1p3n3u1w) 9824 | -3/Protoforge | Found Prototype Device 9824 | -3/Protoforge | Identified Adv. Kinecellerator 9842 | -3/Protoforge | Lost 6 allies 9868 | -3/Protoforge | Found Prototype Protection 9868 | -3/Protoforge | Identified Cep. Core Shell 9874 | -3/Protoforge | Found Prototype Device 9874 | -3/Protoforge | Identified Cep. Weapon Articulator 9885 | -3/Protoforge | Spotted Executioner 9887 | -3/Protoforge | Spotted Striker 9888 | -3/Protoforge | Spotted Executioner 9906 | -3/Protoforge | Destroyed Immortal 9925 | -3/Protoforge | Spotted Decapitator 9940 | -3/Protoforge | Build established: Scavenger-Mutant 9942 | -3/Protoforge | Spotted Executioner 9946 | -3/Protoforge | Core integrity fell below 20% 9950 | -3/Protoforge | Destroyed by H-77 Assassin with Coil Gun Last Messages --------------- 09946_ Slug penetrates Executioner. 09946_ H-77 Assassin suffers critical hit (Destroy). 09946_ Exp. Heat Sink destroyed. 09946_ Slug penetrates Reinforced Barrier. 09946_ Penetrated by Slug. 09946_ Slug penetrates Reinforced Barrier. 09946_ P-80 Master resets B-74 Champion, system corruption cleaned. 09948_ Penetrated by Slug. 09948_ Slug penetrates Reinforced Barrier. 09949_ 0bP_NET: Lugger 498 inbound, all units not involved in other operations escort to target. 09949_ Slammed into P-80 Master. 09949_ Destabilizing: System interference. 09949_ Exp. Coolant Injector temporarily disabled. 09949_ Penetrated by Slug. 09949_ Slug penetrates Reinforced Barrier. Map ----- +----------------------------------------------------+ | ????????????? ?????????????????????????????????? | | ???????????? ?????????????????????????????????? | | ???????????? ?????????????????????????????????? | | ???????????? ?????????????????????????????????? | | ???????????? ?????????????????????????????????? | | ???????????? ?????????????????????????????????? | | ?????????#"?" #?????????????????????????????????? | | ????????#"==" #?????????????????????????????????? | | ????????#"==" #?????????????????????????????????? | | ????????#"==" #?????????????????????????????????? | | ????????#"==" #?????????????????????????????????? | | ????????#" =" #?????????????????????????????????? | | ????????#"= " #?????????????????????????????????? | | ????????#"==" #?????????????????????????????????? | | ????????#"==" #?????????????????????????????????? | | ????????#" =" #?????????????????????????????????? | | ????????#"""# #?????????????????????????????????? | | ????????##??# #?????????????????????????????????? | | ????????????# #????????????????????? #??????????? | | ????????????# #????????????????????? #??????????? | | ????????????# #???????????????????? #??????????? | | ????????????# #???????????????????? #??????????? | | ????????????# #???????????????????? #??????????? | | ??????####### ##################### #??????????? | | pE!sK h ##?????????? | | Yhb EsYE@ #?????????? | | m ph% #?????????? | | ++###################;i/######## #####?????????? | | ?????????????????# #???# #?????????????? | | ?????????????????# #???# #?????????????? | | ?????????????????# " " #???#!% #?????????????? | | ?????????????????# " " #???# #?????????????? | | ?????????????????# ""G"" #???# #?????????????? | | ?????????????????# #???# =#?????????????? | | ?????????????????###########???# !############### | | ???????????????????????????????# | | ???????????????????????????????# | | ???????????????????????????????# | | ???????????????????????????????######## #? | | ??????????????????????????????????????# #? | | ??????????????????????????????????????# #? | | ??????????????????????????????????????# #? | | ??????????????????????????????????????# #? | | ??????????????????????????????????????## ##? | | ??????????????????????????????########## ### | | ??????????????????????????????########## ### | | ??????????????????????????????##"""""""" "" | | ???########?########?########?## """" | | ???########?########?########?## " | | #####""""#####????#####????##### T" | +----------------------------------------------------+ Best States ------------- Heat Dissipation 72 Coolant Potential 120 Energy Generation 57 Energy Capacity 820 Matter Stores 1050 Matter Capacity 1050 Sight Range 16 Robot Scan Range 16 Terrain Scan Density 1210 Cloak Strength 4 Power Amplification 20 Armor Coverage 800 Core Shielding 90 Propulsion Shielding 90 Weapon Shielding 90 Point Defense Rating 480 Evasion (%) 77 Recoil Reduction 2 Offensive Hacking 30 Defensive Hacking 26 Item Schematics ----------------- Adv. Variable Charge Gun | -3/Protoforge | Archive Enh. Biometal Leg | -3/Protoforge | Archive Exp. Optical Array | -3/Protoforge | Archive Robot Schematics ------------------ None Fabricated ------------ B-60 Warrior | x3 | -5/Factory | Preloaded Repaired ---------- Nothing Alien Tech Used ----------------- Matter Drive Core Reset Matrix Sigix Broadsword Dimensional Node Initializer Subatomic Replicator Supercharged TR Achievements -------------- None Challenges ------------ None Game ------ Seed MeleeMetaActivator Manual? 0 Play Time 02:25:20 Cumulative 285.7 hours Start 2025.09.12 @ 15:21:12 End 2025.09.12 @ 21:17:43 Sessions 9 Manual Loads 0 Difficulty Rogue Special Mode None Game No. 410 Rogue 410 Adventurer 0 Explorer 0 Win Type - Total 8 Types 5/0/1/2/0/0/0/0/0/0 Lore% 84 Gallery% 80 Achievement% 62 Wizard Run 0 Options --------- Layout 1 ASCII 0 Keyboard 0 Movement Mouse Keybinds 0 Fullscreen 1 Font 24/Smallcaps Map View 50x40 Zoom Use 0% Tactical HUD 1 Map Filters NONE Filters NONE Steam 1 RUN: 98c29b4c-158d-4277-bf38-e27ac3e28374